[Event "24th Hoogeschool Zeeland 2022"]
[Site "Vlissingen"]
[Date "2022.08.10"]
[Round "5.18"]
[White "Marzano, Carlo"]
[Black "Bruil, Rembrandt"]
[Result "1-0"]
[ECO "E12"]
[WhiteElo "2079"]
[BlackElo "2204"]
[Annotator "TA"]
[PlyCount "195"]
[EventDate "2022.08.05"]
[EventType "swiss"]
[EventCountry "NED"]
[SourceTitle "playchess.com"]
[Source "ChessBase"]
[SourceQuality "1"]
[TimeControl "40/5400+30:1800+30"]

{[%evp 13,195,33,52,54,62,58,68,62,64,47,54,58,103,107,102,61,73,71,77,77,69,68,79,70,76,66,71,79,82,61,66,-1,10,0,61,-22,0,0,2,0,1,0,23,-66,-62,-87,-34,-46,-22,-22,-27,-47,-25,-83,-74,-74,-20,-28,-8,-26,-19,-61,-61,-380,-384,-669,-148,-122,622,476,468,484,478,463,481,477,468,431,472,459,473,456,476,457,458,415,464,423,442,429,419,397,423,347,370,354,342,319,379,323,368,377,432,446,425,458,445,435,620,589,939,886,1073,1074,1882,1712,2020,1094,29979,29980,29980,29981,7112,1208,1736,1817,5089,1582,1963,1943,1843,1501,2007,1868,29979,29980,29979,29980,29981,29982,29984,29979,29979,29980,29980,29979,29981,29978,29978,29979,29979,29980,29980,29981,29981,29980,29980,0,29981,29980,29980,29979,29979,29978,29981,29982,29984,29979,29981,29982,29982,29983,29981,29983,29983,29984,29983,8,29983,29984,29984,29985,29983,29983]} 1. d4 {[%emt 0:00:03]} Nf6 {[%emt 0:00:06]} 2. Nf3 {[%emt 0:00:08]} e6 {[%emt 0:00:16]} 3. c4 {[%emt 0:00:11]} b6 {[%emt 0:00:45]} 4. a3 {[%emt 0:00:32]} Bb7 {[%emt 0:00:52]} 5. Nc3 {[%emt 0:00:14]} g6 {[%emt 0:01:10]} 6. Qc2 {[%emt 0:06:23]} Bg7 {[%emt 0:00:41] 6...Bg7 scores better than 6...Bxf3.} 7. e4 {[%emt 0:00:19]} d6 {[%emt 0:00:25]} 8. Be2 {[%emt 0:00:52] E12: Queen's Indian: Unusual White 4th moves, 4 a3, 4 Nc3 Bb7 5 a3 and 4 Nc3 Bb7 .} Nbd7 {[%emt 0:00:55]} 9. O-O {[%emt 0:03:21]} O-O {[%emt 0:00:13]} 10. Be3 {[%emt 0:07:37] White is slightly better.} Qe7 {[%emt 0:03:27]} 11. Rab1 {[%emt 0:10:29] [#]} c5 $146 {[%emt 0:16:46]} ({Predecessor:} 11... a6 12. b4 Rab8 13. Rfe1 Rfc8 14. h3 h6 15. d5 c6 16. dxe6 Qxe6 17. c5 dxc5 18. bxc5 {½-½ (32) Juhasz,A (2388)-Polak,T (2505) Austria 2016}) 12. d5 {[%emt 0:01:13]} e5 {[%emt 0:07:08]} 13. Ne1 {[%emt 0:00:51]} Ne8 {[%emt 0:09:55]} 14. Nd3 {[%emt 0:00:22]} Bc8 {[%emt 0:07:02]} 15. b4 {[%emt 0:00:58]} f5 {[%emt 0:03:09]} 16. f3 {[%emt 0:00:09]} f4 {[%emt 0:02:25]} 17. Bf2 {[%emt 0:02:15]} Ndf6 {[%emt 0:16:02]} 18. Na4 {[%emt 0:05:18][%cal Rb4c5]} Nd7 $1 {[%emt 0:00:59]} 19. Rb2 {[%emt 0:01:09]} g5 {[%emt 0:00:48]} 20. Rfb1 {[%emt 0:02:25]} Rf7 {[%emt 0:03:20]} 21. Qd2 {[%emt 0:02:08]} Bf8 {[%emt 0:01:30]} 22. bxc5 {[%emt 0:01:01]} (22. Nc3 $14) 22... dxc5 $11 {[%emt 0:00:28]} 23. Qc2 {[%emt 0:04:19]} h5 {[%emt 0:06:01]} (23... Nd6 $11) 24. Kh1 {[%emt 0:05:19]} (24. Nc3 $14) 24... Rg7 {[%emt 0:00:41]} 25. Nc3 {[%emt 0:04:43]} g4 {[%emt 0:03:55]} 26. a4 {[%emt 0:00:56]} g3 {[%emt 0:01:13]} 27. Bg1 {[%emt 0:02:30]} gxh2 {[%emt 0:05:27]} 28. Bf2 {[%emt 0:01:37]} (28. Bxh2 $11 Qh4 29. Bd1) 28... Qg5 $15 {[%emt 0:00:51][%csl Gg7][%cal Rg5g2]} 29. Bf1 {[%emt 0:00:51]} h4 {[%emt 0:02:41][%cal Oh4h3]} 30. Ne2 $1 {[%emt 0:02:20][%cal Bc3e2,Be2g1,Bg1h3][%mdl 32]} Nef6 {[%emt 0:00:28]} 31. a5 $1 {[%emt 0:09:17]} Nh5 {[%emt 0:00:33]} 32. Qc1 {[%emt 0:01:06]} Be7 {[%emt 0:04:30]} 33. Kxh2 {[%emt 0:01:22]} (33. Ra1 $11 bxa5 34. Rxa5) 33... Ng3 {[%emt 0:00:20]} 34. Ng1 {[%emt 0:01:01]} Bd8 {[%emt 0:01:27]} ({Better is} 34... Ba6 $17 {[%cal Oa6c4] Strongly threatening ...Bxc4!} 35. Nh3 Qg6 36. Bxg3 hxg3+ 37. Kg1 bxa5) 35. Nh3 {[%emt 0:00:48] The board is on fire.} Qh5 {[%emt 0:00:29]} 36. Qd1 {[%emt 0:15:23]} Qg6 {[%emt 0:00:29]} 37. Bg1 {[%emt 0:00:54]} Bc7 {[%emt 0:00:20]} (37... Nxf1+ 38. Qxf1 Bc7 39. Bf2 $11) 38. Qa4 $2 {[%emt 0:03:52][%mdl 8192]} (38. Bf2 $15) 38... Nf6 $19 {[%emt 0:00:09]} 39. Qc6 $2 {[%emt 0:01:24]} (39. axb6 Nxf1+ 40. Rxf1 Bxh3 41. Qa2) 39... Nxf1+ $2 {[%emt 0:00:04]} (39... Rb8 $19 40. Rf2 Kh8) 40. Rxf1 $17 {[%emt 0:00:29]} Qg3+ $4 {[%emt 0:00:35][%mdl 8192]} (40... Bxh3 41. Qxa8+ Kh7 42. Ne1 $16) (40... Rb8 $17 {keeps the pressure on.} 41. Kh1 bxa5 42. Qxc7 Rxc7 43. Rxb8 Nd7) 41. Kh1 $18 {[%emt 0:30:13]} Rb8 {[%emt 0:16:26]} 42. Bh2 $1 {[%emt 0:00:00][%cal Bg1h2,Bh2f4,Bf4g5][%mdl 32]} ({Stronger than} 42. Qxf6 Bxh3 43. Rff2 Rg6 44. Qxg6+ (44. Qe7 Rg7 $11) 44... Qxg6 $11) (42. Nhxf4 exf4 43. Qxf6 h3 $14) 42... Qg6 {[%emt 0:00:07]} 43. d6 {[%emt 0:00:00]} Bd8 {[%emt 0:06:06]} 44. Nxe5 {[%emt 0:00:00] Active counter play!} Qe8 {[%emt 0:04:23]} 45. Qxe8+ {[%emt 0:00:00]} Nxe8 {[%emt 0:00:01]} 46. Nc6 {[%emt 0:00:00] Pair of Knights!} Ra8 {[%emt 0:00:06]} 47. Bxf4 {[%emt 0:00:27]} ({Don't take} 47. Nxd8 Bxh3 48. gxh3 Rxd8 $18) 47... Be6 {[%emt 0:00:24]} 48. Nxd8 {[%emt 0:00:30]} Rxd8 {[%emt 0:00:01]} 49. axb6 {[%emt 0:00:24]} Rb7 {[%emt 0:00:42]} 50. e5 {[%emt 0:01:41]} axb6 {[%emt 0:00:14]} 51. Rc1 {[%emt 0:01:18]} Ng7 {[%emt 0:01:09]} 52. Bg5 {[%emt 0:00:30][%csl LRd8,LRh4]} Rf8 {[%emt 0:00:08]} 53. Rcb1 {[%emt 0:01:18]} Rfb8 {[%emt 0:01:48]} 54. Be3 {[%emt 0:00:30]} Bf5 {[%emt 0:01:08]} 55. Rd1 {[%emt 0:00:20]} Be6 {[%emt 0:00:53]} 56. Rc1 {[%emt 0:00:06]} Bf5 {[%emt 0:00:07]} 57. Nf4 {[%emt 0:00:33]} Ne6 {[%emt 0:00:13]} 58. Nd5 {[%emt 0:00:51]} Kf7 {[%emt 0:00:00]} 59. Ne7 {[%emt 0:00:20]} Bh7 {[%emt 0:00:40]} 60. f4 {[%emt 0:00:25]} Nd4 {[%emt 0:00:11]} (60... Ke8 $142 61. Rd1 Rd8) 61. Bxd4 {[%emt 0:00:16]} cxd4 {[%emt 0:00:05]} 62. Nc6 {[%emt 0:00:56][%csl LRb8,LRd4]} Rc8 {[%emt 0:00:17]} 63. Nxd4 {[%emt 0:00:17][%cal Oc4c5] And now c5! would win.} Bd3 {[%emt 0:00:04]} 64. c5 {[%emt 0:00:14]} Be4 {[%emt 0:00:34]} 65. Kh2 {[%emt 0:00:27]} Rxc5 {[%emt 0:03:29]} 66. Rxc5 {[%emt 0:02:12]} bxc5 {[%emt 0:00:01]} 67. Rxb7+ {[%emt 0:00:12]} Bxb7 {[%emt 0:00:02] KB-KN} 68. Nb5 {[%emt 0:00:26]} (68. d7 $142 Ke7 69. Ne6 $1 {[%mdl 512]} Kxd7 70. Nxc5+ Kc8 71. Nxb7 Kxb7 72. Kh3 Kc7 73. Kxh4) 68... Bc8 {[%emt 0:00:23]} 69. Kg1 {[%emt 0:00:54]} Bf5 {[%emt 0:01:53]} 70. Kf2 {[%emt 0:00:13]} (70. Nc7 $142 c4 71. Kf2) 70... Ke6 {[%emt 0:00:08]} 71. Nc7+ {[%emt 0:00:25]} Kd7 {[%emt 0:00:11]} 72. Nd5 {[%emt 0:00:25]} Ke6 {[%emt 0:00:51]} 73. Ne3 {[%emt 0:00:16]} Be4 {[%emt 0:00:33]} 74. f5+ {[%emt 0:00:48]} Kd7 {[%emt 0:00:05]} 75. g4 {[%emt 0:00:25]} hxg3+ {[%emt 0:00:42]} 76. Kxg3 {[%emt 0:00:01]} c4 {[%emt 0:00:09]} 77. Nxc4 {[%emt 0:00:23]} Bxf5 {[%emt 0:00:05]} 78. Kf4 {[%emt 0:00:03]} Bh3 {[%emt 0:04:06]} 79. Ke4 {[%emt 0:00:14]} Kc6 {[%emt 0:01:07]} 80. Kd4 {[%emt 0:00:06]} Be6 {[%emt 0:00:27]} 81. Nd2 {[%emt 0:00:14]} Bh3 {[%emt 0:00:12]} 82. Ne4 {[%emt 0:00:04]} Bg4 {[%emt 0:00:20]} 83. Ng5 {[%emt 0:01:09]} Bf5 {[%emt 0:00:28]} 84. Nf7 {[%emt 0:00:18]} Bh3 {[%emt 0:00:32]} 85. Ng5 $2 {[%emt 0:00:40]} (85. Ke4 Bc8 86. Ng5 Bd7 87. Nh7 Bg4 88. Nf8 Bh3 89. Kf4 Bg2 90. Kf5 Bh3+ 91. Kf6) 85... Bg4 $2 {[%emt 0:00:11][%mdl 8192]} (85... Bf5 $11 86. Ne4 Bh3) 86. Ne4 {[%emt 0:00:06]} Bh3 {[%emt 0:00:12]} 87. Nf2 {[%emt 0:00:31]} Bf5 {[%emt 0:00:14]} 88. Nd3 {[%emt 0:00:02]} Bh3 {[%emt 0:00:26]} 89. Nb4+ {[%emt 0:00:02]} Kb5 {[%emt 0:00:28]} 90. Nd5 {[%emt 0:00:02]} Kc6 {[%emt 0:00:09]} 91. Ne7+ {[%emt 0:00:04]} Kd7 {[%emt 0:00:08]} 92. Kc5 {[%emt 0:00:36]} Ke6 {[%emt 0:01:20]} 93. Nc6 {[%emt 0:00:16]} Bg4 {[%emt 0:00:59]} 94. Kb6 {[%emt 0:01:31]} Bh5 {[%emt 0:02:12]} 95. Nb4 $2 {[%emt 0:04:36]} (95. Nd4+ {mates} Kd7 96. Kc5 Be8 97. e6+ Kd8 98. Nc6+ Kc8 99. Ne7+ Kd8 100. Nd5) 95... Bg4 $2 {[%emt 0:00:51][%mdl 8192] [#]} (95... Kxe5 {is a self mate.} 96. d7 Bg6 97. d8=Q Kf5 98. Qh8 Ke6 99. Nc6 Bb1 100. Qg7) (95... Be8 $11) 96. Nd3 $1 {[%emt 0:00:34] White mates.} Bf5 {[%emt 0:00:41] [#]} 97. Kc7 $1 {[%emt 0:00:27]} Bxd3 {[%emt 0:00:30]} 98. d7 {[%emt 0:00:07] Weighted Error Value: White=0.32/Black=0.36} 1-0

[Event "24th Hoogeschool Zeeland 2022"]
[Site "Vlissingen"]
[Date "2022.08.09"]
[Round "5.19"]
[White "Lefebvre, Herve"]
[Black "Shakhverdian, William"]
[Result "0-1"]
[ECO "C45"]
[WhiteElo "2212"]
[BlackElo "2040"]
[Annotator "TA"]
[PlyCount "70"]
[EventDate "2022.08.05"]
[EventType "swiss"]
[EventCountry "NED"]
[SourceTitle "playchess.com"]
[Source "ChessBase"]
[SourceQuality "1"]
[TimeControl "40/5400+30:1800+30"]

{[%evp 14,70,0,-16,0,-29,0,0,0,-17,29,19,27,0,0,0,0,-8,-16,-61,-54,-64,-52,-66,-57,-66,-25,-71,-71,-64,-43,-45,-39,-49,-43,-99,-100,-172,-165,-185,-200,-454,-282,-418,-250,-576,-567,-557,-311,-335,-264,-568,-551,-504,-276,-608,-649,-708,-632]} 1. e4 {[%emt 0:00:02]} e5 {[%emt 0:00:19]} 2. Nf3 {[%emt 0:00:04]} Nc6 {[%emt 0:00:15]} 3. d4 {[%emt 0:00:06]} exd4 {[%emt 0:00:11]} 4. Nxd4 {[%emt 0:00:07]} Nf6 {[%emt 0:00:52][%cal Bg8f6,Bf6d5,Bd5b6][%mdl 32]} 5. Nxc6 {[%emt 0:00:13]} bxc6 {[%emt 0:00:10]} 6. e5 {[%emt 0:00:07]} Qe7 {[%emt 0:00:13]} 7. Qe2 {[%emt 0:00:03]} Nd5 {[%emt 0:00:16]} 8. h4 {[%emt 0:01:16]} a5 {[%emt 0:00:05][%cal Ba7a5,Ba5a4,Ba4a3][%mdl 32] C45: Scotch Game.} 9. c4 {[%emt 0:03:16]} Ba6 {[%emt 0:00:53]} (9... Nb6 $5 {[%cal Re7e6]}) 10. Rh3 {[%emt 0:36:52]} Nb6 {[%emt 0:07:01] The position is equal.} 11. b3 {[%emt 0:00:04] [#]} O-O-O $146 {[%emt 0:03:32]} (11... a4 {is more appropriate.}) ({Predecessor:} 11... Qe6 12. Nc3 a4 13. Bb2 a3 14. Bc1 Bb4 15. Bd2 O-O 16. O-O-O Rfe8 17. f4 d5 18. exd6 Bxc3 19. Bxc3 Qxe2 20. Bxe2 Rxe2 21. dxc7 {1-0 (33) Nepomniachtchi,I (2789)-Krzyzanowski,M (2503) Chess.com INT 2021}) 12. Bb2 {[%emt 0:19:27]} a4 {[%emt 0:30:31]} 13. Nc3 {[%emt 0:12:35]} a3 {[%emt 0:21:15]} 14. Bc1 {[%emt 0:00:04]} Re8 {[%emt 0:00:05]} 15. Bf4 {[%emt 0:08:38]} f6 {[%emt 0:09:08][%cal Rf6e5]} 16. Re3 {[%emt 0:02:24] [#] And now exf6 would win.} Qf7 {[%emt 0:05:55]} 17. O-O-O {[%emt 0:08:38]} ({Wrong is} 17. exf6 $2 Bb4 18. O-O-O Bxc3 $19) 17... Bb4 {[%emt 0:08:20]} (17... fxe5 {keeps more tension.} 18. Bxe5 Bb4 19. Qd2 d6) 18. Qc2 {[%emt 0:02:04][%cal Oe5e6] Threatens to win with e6!} fxe5 {[%emt 0:03:21]} 19. Bxe5 {[%emt 0:00:05][%cal Oc4c5]} d6 {[%emt 0:00:28]} (19... Rhf8 $5 {[%cal Rf7f2]} 20. Re4 Bb7 $15) 20. Bd4 {[%emt 0:01:14]} (20. Rf3 $11 {should be considered.} Qe7 21. Bg3) 20... c5 $17 {[%emt 0:00:46]} 21. Rf3 {[%emt 0:00:56]} Qd7 {[%emt 0:02:37]} 22. Be3 {[%emt 0:00:54]} Bb7 {[%emt 0:01:59]} 23. Rg3 {[%emt 0:00:04]} g6 {[%emt 0:00:06]} 24. Be2 {[%emt 0:00:18]} (24. Kb1 $15) 24... Qg7 $36 {[%emt 0:00:12][%mdl 2048] Black is really pushing.} 25. Bg4+ {[%emt 0:02:31]} (25. Rd3 $17) 25... Kb8 $19 {[%emt 0:00:05]} 26. Bd2 {[%emt 0:00:50]} Rhf8 {[%emt 0:03:26]} 27. Be1 {[%emt 0:00:03]} (27. f4 {was necessary.}) 27... h5 {[%emt 0:00:30]} 28. Bh3 {[%emt 0:00:40]} (28. Be2 {keeps fighting.}) 28... Qh6+ {[%emt 0:01:12]} (28... d5 $142 29. Qxg6 Qxg6 30. Rxg6 d4) 29. Rg5 $2 {[%emt 0:00:10]} (29. Bd2 {nothing else works.} Qh8 30. f3) 29... Qh8 {[%emt 0:00:06][%cal Oe8e1] [#] ...Rxe1! is the strong threat.} 30. Rg3 {[%emt 0:01:01]} Qf6 {[%emt 0:00:31]} 31. Rxg6 {[%emt 0:01:14]} Qxh4 {[%emt 0:00:34]} 32. Re6 $2 {[%emt 0:00:00]} (32. Rg3 {was the crucial defense.}) 32... Rxe6 {[%emt 0:00:47]} 33. Bxe6 {[%emt 0:00:01]} Re8 {[%emt 0:00:14]} 34. g3 $2 {[%emt 0:00:29]} (34. Qg6 Qe7 35. Bf7) 34... Qf6 {[%emt 0:00:20]} 35. Bh3 {[%emt 0:00:57]} Bf3 {[%emt 0:00:20] Weighted Error Value: White=0.82/Black=0.35} 0-1

[Event "24th Hoogeschool Zeeland 2022"]
[Site "Vlissingen"]
[Date "2022.08.09"]
[Round "5.20"]
[White "Nieuwelink, Kees"]
[Black "Van der Borgt, Peter"]
[Result "1-0"]
[ECO "B32"]
[WhiteElo "2200"]
[BlackElo "1959"]
[Annotator "TA"]
[PlyCount "83"]
[EventDate "2022.08.05"]
[EventType "swiss"]
[EventCountry "NED"]
[SourceTitle "playchess.com"]
[Source "ChessBase"]
[SourceQuality "1"]
[TimeControl "40/5400+30:1800+30"]

{[%evp 20,83,80,21,22,0,0,-11,63,64,64,61,63,60,59,63,183,173,178,181,235,225,249,247,275,275,275,272,275,270,270,267,262,257,285,283,284,278,323,311,341,313,345,317,404,378,383,345,474,474,495,486,705,708,718,556,706,684,1396,1316,4718,2831,29961,11308,1979,1683]} 1. e4 {[%emt 0:00:00]} c5 {[%emt 0:00:00]} 2. Nf3 {[%emt 0:00:00]} Nc6 {[%emt 0:00:24]} 3. d4 {[%emt 0:00:00]} cxd4 {[%emt 0:00:08]} 4. Nxd4 {[%emt 0:00:02]} e5 {[%emt 0:00:31]} 5. Nb5 {[%emt 0:00:12]} a6 {[%emt 0:00:09]} 6. Nd6+ {[%emt 0:01:38]} Bxd6 {[%emt 0:00:22]} 7. Qxd6 {[%emt 0:00:04]} Qf6 {[%emt 0:00:03]} 8. Qd1 {[%emt 0:02:17]} Nge7 {[%emt 0:04:17]} 9. Nc3 {[%emt 0:01:39]} Qg6 {[%emt 0:04:41]} 10. Be3 {[%emt 0:08:30]} d5 {[%emt 0:15:10]} 11. Nxd5 {[%emt 0:04:20]} (11. exd5 $16 Nb4 12. Bd3 (12. Rc1 Bf5 $17) 12... Nxd3+ 13. Qxd3) 11... Nxd5 $11 {[%emt 0:00:19] B32: Sicilian: Löwenthal and Kalashnikov Variations.} 12. Qxd5 {[%emt 0:02:40]} Be6 {[%emt 0:01:24]} 13. Qc5 $1 {[%emt 0:01:54] 13.Qc5 is better than 13.Qd2.} Rc8 {[%emt 0:18:22]} (13... Qxe4 $11 14. O-O-O Rc8) 14. Bd3 $1 $14 {[%emt 0:02:40]} ({Inferior is} 14. f3 Nd4 15. Bxd4 Rxc5 16. Bxc5 f5 17. exf5 Bxf5 $17) 14... Nd4 {[%emt 0:10:21]} 15. Qxe5 {[%emt 0:01:55]} (15. Qd6 {looks sharper.} Rc6 16. Qxe5 Nxc2+ 17. Bxc2 Rxc2 18. Bc5) 15... Nxc2+ {[%emt 0:00:29]} 16. Bxc2 {[%emt 0:00:23]} Rxc2 {[%emt 0:00:17]} 17. Bc5 {[%emt 0:06:22] [#] Intending Qb8+ and mate.} Rxc5 $146 {[%emt 0:06:39] White now steadily converts the win.} ({Predecessor:} 17... Qf6 18. Qxf6 gxf6 19. Bd4 Rg8 20. g3 Rc4 21. Bxf6 Rxe4+ 22. Kd2 Rg6 23. Bc3 Bc4 24. Rhe1 Rge6 25. Rxe4 {½-½ (25) Illes,I (2097)-Skreno,V (2115) Slovakia 2001}) 18. Qxc5 $18 {[%emt 0:00:11] aiming for 0-0.} Qxe4+ {[%emt 0:00:07] [#]} 19. Kf1 $1 {[%emt 0:06:57]} ({Don't play} 19. Qe3 $6 Qxg2 20. O-O-O O-O $14) 19... Bh3 {[%emt 0:14:28]} (19... b6 $142 20. Qxb6 O-O) 20. Rg1 {[%emt 0:03:47]} Qd3+ {[%emt 0:00:27]} 21. Ke1 {[%emt 0:00:06]} Kd7 {[%emt 0:00:36] ( -> ...Re8+)} 22. Rd1 {[%emt 0:00:20]} Re8+ {[%emt 0:22:16] [#]} 23. Qe3 $3 {[%emt 0:00:05][%mdl 512]} Rxe3+ {[%emt 0:00:00]} 24. fxe3 {[%emt 0:00:07] Dancing on a razor blade.} Qxd1+ {[%emt 0:00:00]} 25. Kxd1 {[%emt 0:00:08][%mdl 4096] Endgame KR-KB} Be6 {[%emt 0:00:00]} 26. a3 {[%emt 0:00:25]} h5 {[%emt 0:00:00]} 27. Ke2 {[%emt 0:01:42]} Kd6 {[%emt 0:00:00]} 28. Rd1+ {[%emt 0:00:25]} Ke5 {[%emt 0:00:00]} 29. Rd4 {[%emt 0:00:33]} Bd5 {[%emt 0:00:00]} 30. g3 {[%emt 0:01:04]} g6 {[%emt 0:00:00]} 31. Kd3 {[%emt 0:55:34]} f5 {[%emt 0:00:00]} 32. Kc3 {[%emt 0:00:00]} g5 {[%emt 0:00:38]} 33. Kb4 {[%emt 0:00:00]} Be4 {[%emt 0:00:58]} 34. Kc5 {[%emt 0:00:00]} h4 {[%emt 0:01:24]} 35. b4 {[%emt 0:00:00]} h3 {[%emt 0:00:10]} (35... Bf3 $142 36. gxh4 f4 37. exf4+ gxf4) 36. Rd7 {[%emt 0:00:00] Threatens to win with Re7+.} Bc6 {[%emt 0:00:48]} 37. Re7+ {[%emt 0:00:00]} Kf6 {[%emt 0:00:12]} 38. Kd6 {[%emt 0:00:00]} f4 {[%emt 0:01:37]} 39. exf4 {[%emt 0:00:00]} gxf4 {[%emt 0:00:02]} 40. gxf4 {[%emt 0:00:00]} Kf5 {[%emt 0:00:22]} 41. Rf7+ {[%emt 0:03:34]} Kg6 {[%emt 0:30:06]} 42. Rf8 {[%emt 0:02:17] Weighted Error Value: White=0.05 (flawless) /Black=0.63} 1-0

[Event "24th Hoogeschool Zeeland 2022"]
[Site "Vlissingen"]
[Date "2022.08.09"]
[Round "5.21"]
[White "Boeren, Jurriaan"]
[Black "Van der Kaap, Jos"]
[Result "0-1"]
[ECO "B32"]
[WhiteElo "1845"]
[BlackElo "2187"]
[Annotator "TA"]
[PlyCount "88"]
[EventDate "2022.08.05"]
[EventType "swiss"]
[EventCountry "NED"]
[SourceTitle "playchess.com"]
[Source "ChessBase"]
[SourceQuality "1"]
[TimeControl "40/5400+30:1800+30"]

{[%evp 14,88,41,40,37,41,37,20,29,13,24,0,6,15,17,-87,-77,-72,-74,-95,-100,-89,-81,-81,-84,-87,-88,-221,-224,-230,-205,-210,-205,-208,-211,-524,-515,-1364,-547,-537,-533,-518,-475,-871,-859,-856,-522,-503,-481,-537,-430,-431,-390,-592,-445,-454,0,-476,-460,-639,-627,-646,-516,-579,-529,-679,-563,-610,-478,-1002,-969,-4710,-2329,-29959,-6070,-29991,-4698]} 1. e4 {[%emt 0:00:03]} c5 {[%emt 0:00:15]} 2. Nf3 {[%emt 0:00:05][%cal Bg1f3,Bf3d4,Bd4b5,Bb5a3,Ba3c4,Bc4e3,Be3d5][%mdl 32]} Nc6 {[%emt 0:00:14]} 3. d4 {[%emt 0:00:08]} cxd4 {[%emt 0:00:18]} 4. Nxd4 {[%emt 0:00:09]} e5 {[%emt 0:00:14]} 5. Nb5 {[%emt 0:00:15]} d6 {[%emt 0:00:47]} 6. N1c3 {[%emt 0:00:18]} a6 {[%emt 0:00:15]} 7. Na3 {[%emt 0:00:06]} Be7 {[%emt 0:00:50]} 8. Nc4 {[%emt 0:01:38]} b5 {[%emt 0:00:54] B32: Sicilian: Löwenthal and Kalashnikov Variations.} 9. Ne3 {[%emt 0:00:57]} ({But not} 9. Qd5 Bb7 10. Ne3 Nf6 $11) 9... Nf6 {[%emt 0:02:14]} 10. Ned5 {[%emt 0:03:31]} O-O {[%emt 0:03:24] The position is equal.} 11. Be2 {[%emt 0:03:55] [#]} Nd4 $146 {[%emt 1:26:35]} ({Predecessor:} 11... Nxd5 12. Nxd5 Bg5 13. O-O Bxc1 14. Rxc1 Be6 15. c3 Ne7 16. Nxe7+ Qxe7 17. a4 bxa4 18. Qxa4 {1-0 (79) Rogic,D (2523)-Jankovic,A (2540) Stari Mikanovci 2009}) 12. Be3 {[%emt 0:16:08]} Nxe2 {[%emt 0:00:30]} 13. Qxe2 {[%emt 0:00:39]} ({Don't play} 13. Kxe2 Nxd5 14. Nxd5 f5 15. exf5 (15. Nxe7+ Qxe7 16. exf5 Bxf5 $17) 15... Bxf5 $17) 13... Be6 {[%emt 0:00:00]} 14. Rd1 {[%emt 0:10:25]} (14. O-O-O $11) 14... Nxd5 $17 {[%emt 0:00:00]} 15. Nxd5 {[%emt 0:01:13]} Bxd5 {[%emt 0:00:00]} 16. Rxd5 {[%emt 0:01:49] [#]} Qa5+ $1 {[%emt 0:00:00]} 17. c3 {[%emt 0:00:31]} Qxa2 {[%emt 0:00:00]} 18. O-O {[%emt 0:03:31]} f5 {[%emt 0:00:00]} 19. Bc1 {[%emt 0:04:40]} Rac8 {[%emt 0:00:00]} 20. Rfd1 {[%emt 0:07:19]} (20. Rd3 $17 {was necessary.}) 20... Rxc3 $1 $19 {[%emt 0:00:00]} 21. Qd2 {[%emt 0:10:35]} Rc7 {[%emt 0:00:00][%cal Bc3c7,Bc7f7,Bf7b7][%mdl 32]} 22. exf5 {[%emt 0:03:01]} Rfc8 {[%emt 0:00:00]} 23. Rd3 {[%emt 0:02:12]} b4 {[%emt 0:00:00] ...Qb1 is the strong threat.} 24. g4 $2 {[%emt 0:07:55]} (24. Qe1 {is tougher.}) 24... Qb1 {[%emt 0:00:00][%cal Rc7c1]} 25. Rxd6 {[%emt 0:02:23]} (25. Qxb4 $142 Rxc1 26. Qb3+ Kh8 27. Kg2 Rxd1 28. Rxd1 Qe4+ 29. Qf3) 25... Bxd6 {[%emt 0:00:00]} (25... Rxc1 $142 26. Kg2 Bxd6 27. Qd5+ Kh8 28. Rxc1 Qxc1 29. Qxd6 Qc6+ 30. Qxc6 Rxc6) 26. Qd5+ {[%emt 0:00:34]} Rf7 {[%emt 0:00:00]} 27. Be3 {[%emt 0:01:22]} Qxb2 {[%emt 0:00:00]} 28. g5 {[%emt 0:00:37] [#]} (28. Qxd6 $142 Qe2 29. h3) 28... Qc2 $1 {[%emt 0:00:00]} 29. Qxd6 {[%emt 0:02:39]} (29. Rd3 b3) 29... Qxf5 {[%emt 0:00:00]} 30. Qxb4 {[%emt 0:00:11] [#]} Rb7 $3 {[%emt 0:01:37][%mdl 512]} 31. Qa4 {[%emt 0:03:09]} (31. Qd2 Qg4+) 31... Qe6 {[%emt 0:00:13][%cal Oa6a5]} 32. Qe4 {[%emt 0:00:59]} Rb5 {[%emt 0:02:53]} 33. f3 {[%emt 0:06:33]} (33. Ra1 $142) 33... Rcb8 {[%emt 0:00:56]} 34. Ba7 {[%emt 0:01:14]} Rc8 {[%emt 0:01:20]} ({Black should play} 34... Rf8 $19 35. Rc1 Qf5 36. Qc4+ Kh8) 35. Bf2 $2 {[%emt 0:02:11][%mdl 8192]} (35. Be3 $11 a5 36. Kf2) 35... Qg6 {[%emt 0:00:19]} 36. Qe3 {[%emt 0:00:37]} Rb1 {[%emt 0:00:40]} 37. Rxb1 {[%emt 0:00:22]} Qxb1+ {[%emt 0:00:06][%mdl 4096] Endgame KQR-KQB} 38. Kg2 {[%emt 0:00:02]} Qb2 {[%emt 0:00:33]} 39. Kh3 {[%emt 0:00:22]} Qc3 {[%emt 0:03:26] And now ...Qxe3 would win.} 40. Qe4 {[%emt 0:00:51]} Rf8 {[%emt 0:00:48]} 41. Bg3 {[%emt 0:30:52]} (41. Kg3 $142) 41... Qxf3 {[%emt 0:30:27]} 42. Qc4+ {[%emt 0:00:18]} Kh8 {[%emt 0:00:22]} 43. Qxa6 {[%emt 0:00:18]} e4 {[%emt 0:00:49] ( -> ...e3)} 44. g6 {[%emt 0:01:28]} Qf5+ {[%emt 0:00:22] White did not feel at home in the position after the opening.  Weighted Error Value: White=0.92/Black=0.56} (44... hxg6 $142 45. Qe6 Rf5 46. Qxg6 Rf6 47. Qxf6 gxf6 48. Kh4 Kh7 49. Bc7 Kg6 50. Bb8 f5 51. h3 f4 52. Be5 Qh5#) 0-1